bitfinex/quotes_ETHUSD_20240811
["timestamp","ask_amount","ask_price","bid_price","bid_amount"]
[1723415579614,3.91487,2554.4,2553.6,3.91588]
[1723415579615,3.91499,2554.3,2553.7,0.07830882]
[1723415579851,3.99497546,2554.2,2553.3,6.17488]
[1723415580011,3.91593,2553.7,2553.1,3.91679]
[1723415580214,3.91543,2554.0,2553.3,3.9164]
[1723415580416,3.91543,2554.0,2552.5,2.4101]
[1723415580417,3.91655,2553.3,2552.5,2.4101]
[1723415580721,3.91707,2553.0,2552.5,2.4101]
[1723415580929,3.99682546,2553.0,2552.5,2.4101]
[1723415581150,19.87,2553.8,2552.6,3.91743]
[1723415581457,19.87,2553.8,2552.1,2.3826]
[1723415581458,3.91751,2552.7,2552.1,2.3826]
[1723415582030,0.07983546,2552.8,2552.3,3.91788]
[1723415582253,3.91654,2553.3,2552.5,3.91771]
[1723415582550,3.917,2553.0,2552.3,3.91792]
[1723415582749,0.07983546,2553.2,2552.1,2.3826]
[1723415582750,3.91675,2553.2,2552.1,2.3826]
[1723415582955,0.07983546,2553.1,2552.4,3.91777]
[1723415583169,3.91737,2552.8,2552.1,2.3826]
[1723415583319,0.07983546,2552.7,2551.6,3.91904]
[1723415583520,0.07983546,2552.7,2551.4,2.3826]
[1723415583521,3.91805,2552.3,2551.5,3.91914]
[1723415583761,0.07983546,2552.2,2551.5,3.91914]
[1723415584161,3.91843,2552.1,2551.4,6.30198]
[1723415584316,3.91843,2552.1,2551.5,3.91925]
[1723415584523,0.07983546,2552.2,2551.6,3.91899]
[1723415584825,3.91837,2552.1,2551.4,6.3019]
[1723415585051,0.07983546,2552.0,2551.4,2.3826]
[1723415585217,0.07983546,2552.0,2551.1,3.91985]
[1723415585417,0.07983546,2552.0,2550.9,2.3826]
[1723415585618,3.91957,2551.3,2550.7,3.92047]
[1723415585841,0.07983546,2551.2,2550.5,6.30339]
[1723415586043,0.07983546,2551.2,2550.7,3.92038]
[1723415586247,0.07983546,2551.2,2550.5,3.405026]
[1723415586444,6.24454,2551.9,2550.5,3.405026]
[1723415586445,3.91968,2551.3,2550.5,2.3826]
[1723415586644,0.07983546,2551.2,2550.6,3.9205]
[1723415586822,3.99955546,2551.2,2550.6,3.9205]
[1723415587026,0.07983546,2551.2,2550.6,3.9205]
[1723415587344,3.91999,2551.1,2550.5,2.3826]
[1723415587545,3.9203,2550.9,2550.2,3.92114]
[1723415587746,0.07983546,2551.0,2550.4,3.92084]
[1723415588323,3.99987546,2551.0,2550.4,3.92084]
[1723415588557,0.07983546,2551.0,2550.5,3.92075]
[1723415588766,3.99965546,2551.2,2550.5,3.92075]
[1723415588932,3.99960546,2551.2,2550.4,7.84168]
[1723415589536,3.0,2552.0,2550.5,0.07840744]
[1723415589749,3.91865,2551.9,2551.0,3.91992]
[1723415589940,3.91865,2551.9,2551.2,3.91971]
[1723415590134,3.91898,2551.7,2551.0,3.99830854]
[1723415590463,3.91841,2552.1,2551.2,3.91967]
[1723415590626,3.91907,2551.7,2551.0,4.95876985]
[1723415590825,3.91907,2551.7,2551.0,3.9199]
[1723415591027,3.91838,2552.1,2551.5,3.91916]
[1723415591231,0.07983546,2552.0,2551.3,3.91948]
[1723415591453,0.07983546,2552.0,2551.0,0.638963]
[1723415591623,3.91979,2551.2,2550.5,2.2728]
[1723415591833,3.99974546,2551.1,2550.5,6.19347]
[1723415592270,3.9203,2550.9,2550.3,3.921]
[1723415592455,0.07983546,2550.9,2549.9,2.2728]
[1723415592625,3.92065,2550.6,2550.0,0.22728]
[1723415592953,3.92096,2550.4,2549.7,3.92192]
[1723415593263,3.92096,2550.4,2549.5,2.3714]
[1723415593264,3.91984,2551.2,2550.0,3.92151]
[1723415593567,0.07983546,2551.1,2550.4,3.92085]
[1723415593752,3.91984,2551.2,2550.4,4.312935]
[1723415593952,0.07983546,2551.1,2550.3,2.3046]
[1723415594171,0.07983546,2551.1,2550.0,3.92156]
[1723415594360,3.9206,2550.7,2550.0,3.92156]
[1723415594561,0.07983546,2551.1,2549.8,2.3046]
[1723415594562,0.07983546,2550.6,2549.8,2.3046]
[1723415594872,3.91969,2551.3,2550.6,3.92063]
[1723415595331,3.91969,2551.3,2550.4,3.92087]
[1723415595533,3.9196,2551.3,2550.6,3.92054]
[1723415595767,0.07983546,2551.2,2550.4,3.92084]
[1723415596069,0.07983546,2551.2,2550.2,3.92116]
[1723415596070,3.92027,2550.9,2550.2,3.92116]
[1723415596275,0.07983546,2550.8,2550.2,3.92116]
[1723415596576,3.91995,2551.1,2550.5,3.9207]
[1723415596874,3.91995,2551.1,2550.4,3.92081]
[1723415596875,0.07983546,2551.0,2550.4,3.92081]
[1723415597080,0.07983546,2551.0,2550.3,0.0784092]
[1723415597081,23.78933,2551.5,2550.8,3.92033]
[1723415597734,3.91903,2551.7,2550.9,0.07840285]
[1723415597932,3.91866,2551.9,2551.0,3.91996]
[1723415598133,3.91836,2552.1,2551.4,3.9193]
[1723415598375,0.07983546,2552.4,2551.7,3.91884]
[1723415598689,0.07983546,2552.4,2551.1,0.39983629]
[1723415598690,2.4246,2552.6,2551.4,6.30236307]
[1723415598983,3.91886,2551.8,2551.0,3.91997]
[1723415599132,0.07983546,2551.7,2551.1,3.91978]
[1723415599482,3.91921,2551.6,2551.0,3.91991]
[1723415599680,3.91957,2551.3,2550.6,11.82314]
[1723415599971,6.34332,2551.9,2551.0,3.92002]
[1723415599972,3.91883,2551.8,2551.0,3.92002]
[1723415600155,0.07983546,2551.7,2551.0,3.91992]
[1723415600358,3.99878546,2551.7,2551.1,3.91976]
[1723415600562,0.07983546,2551.7,2550.9,3.92017]
[1723415600874,3.91923,2551.6,2550.8,3.92027]
[1723415601053,0.24246,2552.5,2550.9,0.6283927]
[1723415601264,0.07983546,2552.2,2551.5,3.91916]
[1723415601659,3.91763,2552.6,2551.6,0.078373]
[1723415601879,3.91735,2552.8,2552.1,3.91824]
[1723415602048,3.91715,2552.9,2552.3,3.91803]
[1723415602380,3.91735,2552.8,2552.2,3.91813]
[1723415602676,3.91703,2553.0,2552.3,3.91793]
[1723415602896,2.4246,2553.3,2552.4,3.91786]
[1723415602897,3.91673,2553.2,2552.4,3.91786]
[1723415603060,3.91641,2553.4,2552.7,3.91741]
[1723415603061,3.91644,2553.4,2552.7,3.91741]
[1723415603233,3.91628,2553.5,2552.9,3.91709]
[1723415603433,7.27,2554.1,2553.1,3.91678]
[1723415603636,3.91569,2553.9,2553.1,3.91678]
[1723415603834,3.91569,2553.9,2552.7,3.91727]
[1723415603835,0.07983546,2553.8,2552.7,3.91727]
[1723415604060,3.91667,2553.2,2552.6,2.3046]
[1723415604279,3.91706,2553.0,2552.3,3.91796]
[1723415604478,0.07983546,2552.9,2552.3,3.91792]
[1723415604659,0.07983546,2553.0,2552.6,3.9175]
[1723415604974,0.07983546,2553.0,2552.5,3.91762]
[1723415605140,3.9172,2552.9,2552.3,3.918]
[1723415605336,3.91706,2553.0,2552.3,3.91797]
[1723415605542,3.91741,2552.8,2552.2,2.3046]
[1723415605849,0.07983546,2552.7,2552.2,2.3046]
[1723415606184,3.91757,2552.6,2551.7,6.17358]
[1723415606478,0.07983546,2552.5,2551.7,6.17358]
[1723415606660,0.07983546,2552.5,2551.9,3.91851]
[1723415607181,0.07983546,2552.7,2552.2,3.91804]
[1723415607345,2.4246,2553.6,2552.0,3.91836]
[1723415607346,3.91738,2552.8,2552.0,3.91836]
[1723415607671,3.99682546,2553.0,2552.3,3.91803]
[1723415607846,3.91729,2552.8,2552.2,3.91818]
[1723415608054,0.07983546,2552.9,2552.3,3.91793]
[1723415608265,3.91741,2552.8,2552.2,3.91818]
[1723415608474,3.91791,2552.4,2551.8,3.91872]
[1723415608650,3.91734,2552.8,2551.7,6.17363]
[1723415608843,3.99725546,2552.7,2552.1,3.91819]
[1723415609175,4.78877501,2552.7,2551.7,2.2547]
[1723415609392,3.91807,2552.3,2551.5,3.91918]
[1723415609683,3.91845,2552.1,2551.4,3.91928]
[1723415609888,3.91845,2552.1,2551.3,6.35508]
[1723415609889,3.91885,2551.8,2551.3,2.4356]
[1723415610089,3.91883,2551.8,2551.3,2.4356]
[1723415610250,0.07983546,2551.7,2550.9,2.458]
[1723415610438,3.91857,2552.0,2550.9,2.458]
[1723415610439,3.91889,2551.8,2551.2,3.91962]
[1723415610643,3.91889,2551.8,2551.0,4.16573]
[1723415610644,3.91921,2551.6,2551.0,3.91993]
[1723415611057,7.83842,2551.6,2551.0,3.91993]
[1723415611389,3.0,2552.4,2550.9,2.458]
[1723415611390,11.18747,2552.7,2550.9,2.458]
[1723415611548,3.91797,2552.4,2551.7,3.91894]
[1723415611877,0.07983546,2552.5,2551.9,3.91851]
[1723415612061,3.91795,2552.4,2551.7,2.2739]
[1723415612263,0.07983546,2552.3,2551.8,3.91875]
[1723415612573,3.91734,2552.8,2552.0,3.9184]
[1723415612875,3.91761,2552.6,2552.0,3.91838]
[1723415613071,0.07983546,2552.5,2552.0,3.91838]
[1723415613440,3.91733,2552.8,2552.1,3.91831]
[1723415613640,3.91733,2552.8,2552.0,3.91838]
[1723415613641,3.91771,2552.6,2552.0,3.91838]
[1723415613841,0.07983546,2552.7,2552.2,3.91817]
[1723415614151,0.07983546,2552.7,2551.8,4.538015]
[1723415614350,3.91789,2552.4,2551.9,4.46863]
[1723415614589,0.07983546,2552.7,2552.1,3.91833]
[1723415614790,0.07983546,2552.7,2552.2,3.91808]
[1723415615379,0.07983546,2552.7,2552.0,3.91843]
[1723415615600,3.91781,2552.5,2551.7,2.2739]
[1723415615880,3.91828,2552.2,2551.7,2.2739]
[1723415616091,0.07983546,2552.1,2551.7,2.2739]
[1723415616240,3.99827546,2552.1,2551.7,2.2739]
[1723415616444,3.91864,2551.9,2551.7,2.2739]
[1723415616639,3.99822546,2552.1,2551.7,2.2739]
[1723415616879,3.99839546,2552.0,2551.7,2.2739]
[1723415617244,3.91813,2552.3,2551.7,6.19285]
[1723415617472,3.91849,2552.0,2551.7,2.2739]
[1723415617695,3.91825,2552.2,2551.7,2.2739]
[1723415618051,19.87,2553.2,2551.7,2.89319]
[1723415618382,3.91728,2552.8,2552.2,3.91806]
[1723415618700,3.99725546,2552.7,2552.0,3.91841]
[1723415619005,3.9179,2552.4,2551.8,4.936174]
[1723415619183,3.9179,2552.4,2551.9,7.46859]
[1723415619368,3.91765,2552.6,2551.9,4.4678664]
[1723415619691,3.91734,2552.8,2552.2,3.91815]
[1723415619891,3.91734,2552.8,2552.0,4.46839]
[1723415619892,3.91674,2553.2,2552.3,0.07835512]
[1723415620099,3.91698,2553.0,2552.3,3.91792]
[1723415620259,3.99681546,2553.0,2552.3,3.91792]
[1723415620459,7.022005,2553.4,2552.3,3.91792]
[1723415620460,3.91672,2553.2,2552.6,3.91757]
[1723415620670,3.91704,2553.0,2552.4,0.07834957]
[1723415620895,19.87,2553.6,2552.4,0.07834957]
[1723415620896,0.33344677,2553.9,2553.3,3.9164]
[1723415621198,7.27,2554.5,2553.3,6.39195]
[1723415621454,3.91575,2553.8,2553.3,2.4755]
[1723415621589,3.91531,2554.1,2553.5,3.91607]
[1723415622114,3.9151,2554.3,2553.3,2.55382026]
[1723415622411,3.91566,2553.9,2553.3,2.4755]
[1723415622574,3.91531,2554.1,2553.3,2.55382483]
[1723415622777,3.91531,2554.1,2553.5,3.91609]
[1723415622975,3.91531,2554.1,2553.4,7.83248]
[1723415623165,3.91531,2554.1,2553.4,3.91624]
[1723415623399,3.91531,2554.1,2553.4,3.99455902]
[1723415623701,3.91551,2554.0,2553.4,3.99454902]
[1723415623868,3.91551,2554.0,2553.4,7.91079902]
[1723415624078,3.91551,2554.0,2553.4,3.99454902]
[1723415624301,3.91488,2554.4,2553.8,3.91571]
[1723415624524,3.91488,2554.4,2553.6,3.91593]
[1723415624659,6.91445,2554.7,2553.6,3.91599]
[1723415624866,3.91508,2554.3,2553.6,7.83191]
[1723415625112,3.91485,2554.4,2553.8,3.91563]
[1723415625714,3.91485,2554.4,2553.7,0.07831253]
[1723415625858,3.91485,2554.4,2553.8,3.91571]
[1723415626063,0.07983546,2554.3,2553.8,3.91571]
[1723415626376,3.99482546,2554.3,2553.8,3.91571]
[1723415626585,7.8292,2554.6,2554.0,3.91539]
[1723415626822,0.0696024,2555.0,2554.2,3.91509]
[1723415626965,3.91414,2554.9,2554.2,6.20849]
[1723415627165,0.0696024,2555.0,2554.4,3.91479]
[1723415627166,3.9835924,2555.0,2554.4,3.91479]
[1723415627395,0.0696024,2555.0,2554.4,3.91469]
[1723415627708,0.0696024,2555.0,2554.6,3.91449]
[1723415628074,3.9836324,2555.0,2554.2,6.829249]
[1723415628269,0.0696024,2555.0,2554.4,3.91481]
[1723415628466,0.0696024,2555.0,2554.6,3.91441]
[1723415628673,0.0696024,2555.0,2554.7,0.07827836]
[1723415629102,0.0696024,2555.0,2554.9,7.82808]
[1723415629301,0.0696024,2555.0,2554.9,10.83748]
[1723415629554,36.06144,2556.6,2555.9,3.91242]
[1723415629850,0.07983546,2556.5,2556.0,2.4594]
[1723415630053,0.07983546,2556.5,2555.5,3.91311]
[1723415630054,3.91187,2556.4,2555.5,3.91311]
[1723415630212,3.91085,2557.0,2555.6,0.07825045]
[1723415630415,3.91068,2557.1,2555.8,2.2748]
[1723415630614,3.91115,2556.8,2556.1,3.91208]
[1723415630822,1.75585,2557.1,2556.6,3.91142]
[1723415631034,3.91058,2557.2,2556.6,3.91142]
[1723415631239,3.91029,2557.4,2556.6,3.91142]
[1723415631453,0.07983546,2557.4,2556.7,2.49381854]
[1723415631644,0.1241523,2557.6,2556.8,3.98926363]
[1723415631828,0.1241523,2557.6,2557.0,3.9108]
[1723415631829,4.0342123,2557.6,2557.0,3.9108]
[1723415632046,5.55555853,2557.6,2556.8,3.98926362]
[1723415632251,5.55555853,2557.6,2556.9,3.91098]
[1723415632565,5.55555853,2557.6,2557.1,3.91063]
[1723415632566,0.1241523,2557.6,2557.1,3.91063]
[1723415632799,0.1241523,2557.6,2557.4,3.9102]
[1723415632967,0.1241523,2557.6,2557.0,3.91075]
[1723415633168,0.1241523,2557.6,2556.7,10.30879]
[1723415633169,3.91022,2557.4,2556.7,10.30879]
[1723415633379,3.91022,2557.4,2556.7,6.3976]
[1723415633565,0.1241523,2557.6,2557.1,3.91056]
[1723415633766,0.1241523,2557.6,2557.2,0.07819791]
[1723415634056,0.1241523,2557.6,2557.5,3.91006]
[1723415634256,0.1241523,2557.6,2557.5,10.37941143]
[1723415634485,0.1241523,2557.6,2557.5,6.46935143]
[1723415635070,0.1241523,2557.6,2557.5,2.55929143]
[1723415635457,0.1241523,2557.6,2557.5,11.02634788]
[1723415635685,0.1241523,2557.6,2557.5,10.92941074]
[1723415635858,0.1241523,2557.6,2557.5,10.85122]
[1723415636195,0.1241523,2557.6,2557.5,6.94116]
[1723415636565,0.1241523,2557.6,2557.0,2.4505]
[1723415636896,4.0340623,2557.6,2557.0,2.4505]
[1723415637102,0.07983546,2557.5,2556.2,3.982]
[1723415637286,2.15943546,2557.5,2556.1,2.3022]
[1723415637458,2.15943546,2557.5,2556.3,3.91186]
[1723415637659,2.15943546,2557.5,2556.1,2.3022]
[1723415637660,2.62567495,2557.4,2556.1,2.3022]
[1723415637863,3.91113,2556.9,2556.1,6.2144]
[1723415638088,3.91095,2557.0,2556.1,6.2144]
[1723415638089,3.99097546,2556.8,2556.1,6.2144]
[1723415638302,3.91042,2557.3,2555.7,7.89475]
[1723415638303,3.91176,2556.4,2555.7,7.89475]
[1723415638669,3.91218,2556.2,2555.3,3.91335]
[1723415639005,4.31049755,2556.7,2555.9,3.91239]
[1723415639195,4.31049755,2556.7,2555.7,3.91274]
[1723415639196,0.07983546,2556.6,2555.8,0.07823918]
[1723415639357,3.91204,2556.3,2555.3,3.91335]
[1723415639562,3.91293,2555.7,2554.9,3.91392]
[1723415639755,3.91254,2555.9,2554.9,3.91392]
[1723415639957,3.91359,2555.2,2554.7,3.982]
[1723415640173,3.99322546,2555.4,2554.5,3.91455]
[1723415640377,3.99322546,2555.4,2554.7,3.9142]
[1723415640378,3.91339,2555.4,2554.7,3.9142]
[1723415640578,0.07983546,2555.3,2554.2,3.982]
[1723415640781,3.91345,2555.3,2553.6,0.19592725]
[1723415641107,3.91314,2555.5,2554.7,3.91433]
[1723415641411,0.07983546,2555.6,2554.9,2.4093]
[1723415641613,0.07983546,2555.6,2554.9,2.48602354]
[1723415641785,0.07983546,2555.6,2554.9,2.4093]
[1723415641786,3.91323,2555.5,2554.9,2.4093]
[1723415641985,3.9139,2555.0,2554.2,9.32429]
[1723415642178,3.86371,2555.2,2554.4,3.91467]
[1723415642382,3.86371,2555.2,2554.2,5.4093]
[1723415642383,0.07983546,2555.3,2554.3,3.91491]
[1723415642579,1.359636,2555.9,2554.4,3.07827914]
[1723415642780,3.91359,2555.2,2554.3,3.91482]
[1723415643069,3.91302,2555.6,2554.7,2.2827]
[1723415643585,0.07983546,2555.5,2554.7,2.2827]
[1723415643782,0.07983546,2555.5,2554.3,2.4074]
[1723415643783,3.91384,2555.1,2554.3,2.4074]
[1723415644054,3.91384,2555.1,2554.0,11.81268]
[1723415644055,3.91434,2554.8,2554.0,7.89731]
[1723415644224,0.391384,2555.1,2554.0,7.89731]
[1723415644225,3.91467,2554.5,2554.0,2.4074]
[1723415644384,0.07983546,2554.4,2553.5,3.982]
[1723415644577,3.91522,2554.2,2553.4,2.4074]
[1723415644776,3.91522,2554.2,2553.5,3.91618]
[1723415645004,0.07983546,2554.1,2553.4,2.64814]
[1723415645171,0.07983546,2554.1,2553.4,2.4074]
[1723415645375,3.91332,2555.4,2554.7,2.3448]
[1723415645603,11.18245,2556.0,2554.8,0.625919]
[1723415645604,3.99297546,2555.5,2554.8,0.625919]
[1723415645804,3.91314,2555.5,2554.7,2.42307241]
[1723415646012,3.91262,2555.9,2555.0,3.91375]
[1723415646218,7.27,2556.0,2555.2,3.91345]
[1723415646513,13.55415,2556.5,2555.3,0.07825471]
[1723415646725,3.91252,2555.9,2555.3,0.07825471]
[1723415646934,13.55415,2556.5,2555.3,0.07825471]
[1723415646935,3.91197,2556.3,2555.3,0.07825471]
[1723415647126,6.28413,2556.5,2555.4,0.55]
[1723415647293,6.28413,2556.5,2555.6,3.91286]
[1723415647489,6.28413,2556.5,2555.4,4.46321]
[1723415647490,3.912,2556.3,2555.4,0.55]
[1723415647725,3.91317,2555.5,2554.5,3.982]
[1723415647899,3.91257,2555.9,2554.8,0.62826596]
[1723415648093,3.91233,2556.1,2554.9,0.07825798]
[1723415648290,7.82464,2556.1,2555.3,3.91342]
[1723415648530,3.91239,2556.0,2555.5,2.304]
[1723415648709,3.91204,2556.3,2555.5,2.38225288]
[1723415648911,3.91263,2555.9,2555.5,2.304]
[1723415649316,3.91268,2555.8,2555.5,2.304]
[1723415649638,3.91297,2555.6,2555.5,2.304]
[1723415649997,3.91256,2555.9,2554.9,2.2972]
[1723415650242,3.91333,2555.4,2554.9,2.2972]
[1723415650394,4.695964,2555.4,2554.9,2.2972]
[1723415650592,3.91333,2555.4,2554.9,2.2972]
[1723415651147,3.91238,2556.0,2554.2,2.4979]
[1723415651148,3.91389,2555.0,2554.2,2.4979]
[1723415651437,3.91365,2555.2,2554.3,3.91484]
[1723415651686,7.27,2555.5,2554.2,2.4979]
[1723415651687,3.91333,2555.4,2554.5,3.91464]
[1723415651855,3.91333,2555.4,2554.7,2.4548]
[1723415652056,3.91408,2554.9,2554.7,2.4548]
[1723415652260,0.07983546,2555.3,2554.1,2.4548]
[1723415652261,3.91431,2554.8,2554.1,2.4548]
[1723415652458,3.91395,2555.0,2554.1,2.4548]
[1723415652704,3.91395,2555.0,2554.2,3.9932968]
[1723415652993,3.91386,2555.1,2554.3,0.07828576]
[1723415653157,3.91399,2555.0,2554.3,0.0782859]
[1723415653482,3.91399,2555.0,2554.2,3.91501]
[1723415653685,3.91408,2554.9,2554.3,0.55]
[1723415653887,7.997,2555.5,2554.3,0.55]
[1723415653888,3.91357,2555.3,2554.6,3.91449]
[1723415654049,3.91254,2555.9,2554.2,1.491082]
[1723415654050,3.91258,2555.9,2555.1,3.9136]
[1723415654254,3.91258,2555.9,2555.3,2.4236]
[1723415654455,3.91258,2555.9,2555.4,0.0782589]
[1723415654757,3.91223,2556.1,2555.4,3.91315]
[1723415654962,7.27,2556.4,2555.5,2.4236]
[1723415655310,19.87,2556.6,2555.7,2.4236]
[1723415655596,3.9119,2556.3,2556.0,2.4236]
[1723415655748,3.91135,2556.7,2556.0,2.4236]
[1723415655948,1.1181,2556.8,2556.1,4.54029927]
[1723415656187,3.91133,2556.7,2556.1,0.62823927]
[1723415656349,3.9108,2557.1,2556.3,3.9119]
[1723415656549,7.516857,2557.1,2556.4,0.07822546]
[1723415656752,19.87,2557.5,2556.7,3.91116]
[1723415656963,19.87,2557.5,2557.0,3.91073]
[1723415657260,0.1241523,2557.6,2557.3,2.3024]
[1723415657477,0.1241523,2557.6,2557.3,2.38059524]
[1723415657847,0.1241523,2557.6,2557.3,6.29095524]
[1723415658193,3.90787,2559.0,2558.2,2.3024]
[1723415658491,3.98784546,2558.9,2558.2,2.3024]
[1723415658796,7.27,2559.4,2558.6,3.90838]
[1723415658994,5.024867,2559.4,2558.7,2.90285148]
[1723415659199,5.024867,2559.4,2558.8,0.07814719]
[1723415659487,0.07983546,2559.3,2558.7,2.2747]
[1723415659685,3.90758,2559.2,2558.8,0.55]
[1723415659883,3.90732,2559.3,2558.8,0.6281533]
[1723415660064,0.07983546,2559.3,2558.7,2.2747]
[1723415660265,3.90757,2559.2,2558.7,2.2747]
[1723415661002,0.07983546,2559.1,2558.4,6.90857]
[1723415661157,3.98745546,2559.1,2558.5,0.55]
[1723415661356,4.77694301,2559.1,2558.5,0.55]
[1723415661588,4.77694301,2559.1,2558.4,0.55]
[1723415661891,3.9081,2558.8,2558.2,2.313]
[1723415662056,0.07983546,2558.7,2557.9,6.90936]
[1723415662386,0.07983546,2558.7,2557.8,10.20787]
[1723415662387,3.90865,2558.5,2557.8,2.3163]
[1723415662691,3.98848546,2558.5,2557.8,2.3163]
[1723415662988,3.90895,2558.3,2557.8,2.3163]
[1723415663196,3.90927,2558.1,2557.4,2.3163]
[1723415663491,3.90957,2557.9,2557.4,2.3163]
[1723415663689,0.07983546,2557.8,2557.4,2.3163]
[1723415663895,0.07983546,2557.8,2556.7,2.3077]
[1723415664118,3.91027,2557.4,2556.7,2.3077]
[1723415664404,3.91053,2557.2,2556.7,2.3077]
[1723415664606,3.91036,2557.4,2556.7,2.3077]
[1723415664768,11.17966,2557.8,2556.8,0.07820834]
[1723415664971,11.17961,2557.8,2557.0,2.4978]
[1723415665158,3.90977,2557.7,2557.0,2.4978]
[1723415665497,3.90996,2557.6,2557.0,2.4978]
[1723415665665,7.27,2557.8,2557.1,0.07819743]
[1723415665868,3.90914,2558.2,2557.2,2.4978]
[1723415666077,3.90947,2557.9,2557.3,0.07818724]
[1723415666291,0.07983546,2557.8,2556.8,2.3306]
[1723415666594,3.90998,2557.6,2556.8,5.3306]
[1723415666797,3.90977,2557.7,2556.9,0.0782006]
[1723415666973,4.300617,2557.8,2556.8,5.3306]
[1723415667159,3.91006,2557.6,2556.8,5.3306]
[1723415667361,3.91019,2557.5,2556.8,5.3306]
[1723415667661,3.91025,2557.4,2556.8,5.3306]
[1723415668093,3.91011,2557.5,2556.8,5.3306]
[1723415668574,3.91011,2557.5,2556.9,0.55]
[1723415668914,3.91042,2557.3,2556.9,3.55]
[1723415669116,3.91139,2556.7,2556.3,2.3431]
[1723415669275,3.91161,2556.5,2556.3,2.3431]
[1723415669666,3.91105,2556.9,2556.3,2.3431]
[1723415669968,3.91105,2556.9,2556.4,0.07822576]
[1723415670168,0.391039,2557.2,2556.3,2.3431]
[1723415670169,3.91144,2556.6,2556.3,2.3431]
[1723415670400,3.91175,2556.4,2555.8,2.4953]
[1723415670596,3.91146,2556.6,2555.8,2.4953]
[1723415670905,3.91146,2556.6,2555.7,3.982]
[1723415670906,3.91261,2555.9,2555.3,2.4953]
[1723415671087,3.91298,2555.6,2555.3,2.4953]
[1723415671277,0.39915455,2556.4,2555.3,2.4953]
[1723415671474,3.91301,2555.6,2555.3,2.4953]
[1723415671877,3.91293,2555.7,2555.3,2.4953]
[1723415672173,7.82547,2555.8,2555.3,2.4953]
[1723415672377,3.91287,2555.7,2555.3,2.4953]
[1723415672561,3.91267,2555.8,2555.3,2.4953]
[1723415672959,3.91311,2555.6,2555.3,2.4953]
[1723415673194,3.91314,2555.5,2555.3,2.4953]
[1723415673371,3.91314,2555.5,2554.4,0.3918]
[1723415673372,3.91371,2555.2,2554.9,2.405]
[1723415673571,0.86246046,2555.5,2554.5,3.91462]
[1723415673797,0.07983546,2555.5,2554.5,3.91462]
[1723415673985,3.91346,2555.3,2554.5,3.91462]
[1723415674215,3.91359,2555.2,2554.5,3.91462]
[1723415674384,3.91359,2555.2,2554.6,0.391462]
[1723415674580,3.91315,2555.5,2554.8,2.405]
[1723415674921,3.91275,2555.8,2555.1,3.91361]
[1723415675082,3.91313,2555.5,2555.2,0.62825215]
[1723415675282,3.91262,2555.9,2555.3,0.07826119]
[1723415675579,0.39915455,2556.4,2555.4,0.55]
[1723415675785,3.91186,2556.4,2555.5,6.39625688]
[1723415675980,3.91103,2556.9,2555.6,3.55]
[1723415676199,3.91282,2555.7,2555.6,0.55]
[1723415676521,3.91271,2555.8,2555.5,2.405]
[1723415677086,3.91297,2555.6,2555.2,3.982]
[1723415677326,3.91346,2555.3,2555.0,2.4036]
[1723415677617,3.91374,2555.1,2554.4,2.4036]
[1723415677821,7.82705,2555.3,2554.4,6.31834]
[1723415678119,3.91321,2555.5,2554.5,4.937865]
[1723415678324,3.91323,2555.5,2554.5,4.937915]
[1723415678521,3.91259,2555.9,2554.6,0.7341515]
[1723415678709,3.91339,2555.4,2554.8,2.4036]
[1723415679023,3.91372,2555.2,2554.8,2.4036]
[1723415679229,3.91372,2555.2,2554.9,0.55]
[1723415679437,3.91332,2555.4,2554.9,0.55]
[1723415679597,3.91332,2555.4,2554.9,0.62827201]
[1723415679919,3.91304,2555.6,2554.9,0.62827201]
[1723415679920,3.91346,2555.3,2554.9,0.55]
[1723415680123,3.91388,2555.1,2554.9,0.55]
[1723415680842,3.91389,2555.0,2554.9,0.55]
[1723415681775,3.91384,2555.1,2554.9,0.55]
[1723415683027,3.91384,2555.1,2554.5,3.0]
[1723415683028,3.91389,2555.0,2554.5,3.0]
[1723415683360,7.8286,2554.8,2554.6,0.55]
[1723415683537,3.91348,2555.3,2554.3,2.4646]
[1723415683863,3.91348,2555.3,2553.7,7.89782]
[1723415683864,3.91497,2554.3,2553.9,2.4774]
[1723415684031,3.91481,2554.4,2553.9,2.4774]
[1723415684229,0.391348,2555.2,2553.9,3.12334]
[1723415684230,3.9146,2554.6,2553.9,3.12334]
[1723415684584,3.9146,2554.6,2553.9,7.0388]
[1723415684863,3.91427,2554.8,2553.9,7.0388]
[1723415685066,0.07983546,2555.0,2554.1,3.91513]
[1723415685067,3.91391,2555.0,2554.1,3.91513]
[1723415685275,3.91398,2555.0,2554.2,0.07828367]
[1723415685444,3.91414,2554.9,2554.3,0.0782836]
[1723415685627,11.18317,2555.5,2554.4,2.4752]
[1723415685969,3.91353,2555.3,2554.6,3.91441]
[1723415686136,3.91353,2555.3,2554.7,0.62827203]
[1723415686341,3.91353,2555.3,2554.8,0.07827204]
[1723415686557,3.91353,2555.3,2554.9,0.55]
[1723415686873,3.9132,2555.5,2554.9,0.55]
[1723415687178,3.91353,2555.3,2554.9,0.55]
[1723415687463,3.91289,2555.7,2555.1,2.4149]
[1723415687639,19.87,2556.0,2555.2,0.62825784]
[1723415687846,7.27,2556.3,2555.1,2.4149]
[1723415687847,0.07983546,2555.9,2555.1,2.4149]
[1723415688083,3.91321,2555.5,2554.8,3.0]
[1723415688367,3.91321,2555.5,2554.9,0.55]
[1723415688368,3.91389,2555.0,2554.9,0.55]
[1723415688552,3.91321,2555.5,2554.8,3.62827752]
[1723415688860,3.91348,2555.3,2554.8,3.62827752]
[1723415689064,3.91348,2555.3,2554.8,4.54809475]